bitfinex/quotes_SOLUSD_20251202
["timestamp","ask_amount","ask_price","bid_price","bid_amount"]
[1764682066120,0.68,131.18,131.15,7.6245724]
[1764682067310,3.38797991,131.17,131.13,7.62570028]
[1764682067513,3.38797991,131.16,131.12,7.62650537]
[1764682067714,11.01246959,131.16,131.12,7.62650537]
[1764682067938,0.68,131.15,131.12,7.62650537]
[1764682069937,4.06797991,131.15,131.12,7.62650537]
[1764682070141,11.69298984,131.15,131.12,7.62650537]
[1764682070339,0.68,131.14,131.11,7.62689695]
[1764682071324,0.68,131.14,131.11,11.01487686]
[1764682071643,8.30561616,131.14,131.09,7.62809841]
[1764682071955,3.38797991,131.13,131.09,7.62809841]
[1764682072132,4.06797991,131.13,131.09,7.62809841]
[1764682072334,0.68,131.12,131.09,7.62809841]
[1764682073040,0.68,131.12,131.09,11.01607832]
[1764682073224,0.68,131.15,131.1,12.19792483]
[1764682073425,0.68,131.15,131.11,3.38797991]
[1764682073625,4.06797991,131.15,131.1,12.19792483]
[1764682073840,11.69295476,131.15,131.11,7.62718328]
[1764682074172,0.68,131.14,131.11,7.62718328]
[1764682074749,0.68,131.14,131.08,12.19792483]
[1764682074750,3.38797991,131.13,131.08,12.19792483]
[1764682075247,0.68,131.12,131.08,12.19792483]
[1764682075751,0.68,131.12,131.08,11.0169088]
[1764682076051,11.69479312,131.12,131.08,7.62892889]
[1764682077322,11.01479312,131.12,131.08,7.62892889]
[1764682077518,0.68,131.11,131.08,7.62892889]
[1764682078963,3.38797991,131.1,131.07,7.62930419]
[1764682079466,0.68,131.09,131.07,7.62930419]
[1764682080358,7.62722357,131.11,131.07,7.62930419]
[1764682080565,0.68,131.13,131.1,3.38797991]
[1764682080741,0.68,131.13,131.09,3.38797991]
[1764682081062,4.06797991,131.13,131.08,20.87792483]
[1764682081261,0.68,131.13,131.09,3.38797991]
[1764682081450,4.06797991,131.12,131.07,26.70308156]
[1764682081666,3.38797991,131.11,131.07,7.62930419]
[1764682081845,4.06797991,131.11,131.07,7.62930419]
[1764682082067,0.68,131.1,131.07,7.62930419]
[1764682083038,0.68,131.1,131.07,11.0172841]
[1764682084650,0.68,131.1,131.07,7.62930419]
[1764682085647,8.30796314,131.1,131.07,7.62930419]
[1764682086047,0.68,131.09,131.07,7.62930419]
[1764682086447,0.68,131.09,131.06,7.63009308]
[1764682087571,0.68,131.09,131.06,11.01807299]
[1764682088171,0.68,131.09,131.06,7.63009308]
[1764682088363,3.38797991,131.08,131.05,7.63065774]
[1764682088972,8.30837115,131.09,131.03,38.76394677]
[1764682088973,3.38797991,131.06,131.03,19.06710286]
[1764682089204,3.38797991,131.04,131.01,7.63253925]
[1764682089474,0.68,131.06,131.01,7.63253925]
[1764682089652,3.38797991,131.03,131.0,19.08385199]
[1764682089853,3.38797991,131.04,131.0,19.08385199]
[1764682090075,4.06797991,131.04,131.0,19.08385199]
[1764682090247,0.68,131.03,131.0,19.08385199]
[1764682090450,0.68,131.03,130.99,9.80540363]
[1764682090662,0.68,131.03,130.98,9.80574911]
[1764682090953,0.68,131.03,130.98,18.46574911]
[1764682091775,0.68,131.03,130.99,2.17123309]
[1764682091951,0.68,131.03,130.99,10.98117801]
[1764682092152,0.68,131.03,130.98,60.49104296]
[1764682092351,2.85123309,131.03,130.98,37.5526326]
[1764682092554,0.68,131.03,130.98,46.2126326]
[1764682092787,0.66,131.02,130.98,44.04139951]
[1764682092996,0.66,131.08,131.01,27.29004201]
[1764682093288,0.66,131.08,131.05,2.17123309]
[1764682093674,0.66,131.08,131.02,31.5896442]
[1764682093883,0.66,131.08,131.06,7.63009308]
[1764682094085,0.66,131.1,131.06,28.87655888]
[1764682094462,0.66,131.1,131.04,8.80994492]
[1764682094463,5.02013753,131.09,131.04,8.80994492]
[1764682094791,5.02013753,131.09,131.03,13.68013753]
[1764682094992,0.66,131.08,131.04,5.02013753]
[1764682095178,5.02013753,131.07,131.03,7.63184003]
[1764682095584,0.66,131.06,131.03,7.63184003]
[1764682095873,0.66,131.06,131.03,26.71144012]
[1764682096472,0.66,131.07,131.03,31.73157765]
[1764682096780,0.66,131.07,131.03,26.71144012]
[1764682096979,0.66,131.06,131.03,19.07960009]
[1764682098288,0.66,131.06,131.03,26.71144012]
[1764682100777,0.66,131.08,131.03,31.73157765]
[1764682100985,0.66,131.07,131.03,31.73157765]
[1764682101371,0.66,131.07,131.03,26.71144012]
[1764682103097,0.66,131.07,131.03,49.64283702]
[1764682103689,0.66,131.07,131.05,7.63067531]
[1764682104775,0.66,131.07,131.04,7.63125763]
[1764682109104,8.28840781,131.09,131.04,7.63125763]
[1764682109301,13.30854534,131.09,131.04,74.55139516]
[1764682109601,0.66,131.09,131.05,13.68013753]
[1764682109990,0.66,131.09,131.06,5.02013753]
[1764682110888,0.66,131.09,131.07,7.62951094]
[1764682115414,16.28696167,131.12,131.07,7.62951094]
[1764682115585,0.72,131.1,131.07,12.64964847]
[1764682116214,0.72,131.1,131.07,7.62951094]
[1764682116585,2.88895773,131.1,131.07,7.62951094]
[1764682116892,10.51673594,131.1,131.07,7.62951094]
[1764682117102,0.72,131.09,131.07,7.62951094]
[1764682118303,0.72,131.09,131.05,26.70634944]
[1764682118684,0.72,131.09,131.05,34.33375257]
[1764682119106,0.72,131.09,131.05,26.70634944]
[1764682121614,2.88895773,131.09,131.05,26.70634944]
[1764682122112,0.67,131.08,131.05,26.70634944]
[1764682123117,2.83895773,131.08,131.05,26.70634944]
[1764682123488,2.16895773,131.06,131.05,7.63067531]
[1764682123901,2.83895773,131.06,131.05,7.63067531]
[1764682124120,2.83895773,131.06,131.03,7.63184003]
[1764682124319,2.83895773,131.05,131.03,7.63184003]
[1764682124492,2.83895773,131.05,131.0,27.74320748]
[1764682124816,2.83895773,131.04,131.01,7.63300511]
[1764682125196,0.67,131.03,131.0,19.08320748]
[1764682126098,2.83895773,131.03,131.0,19.08320748]
[1764682127323,0.67,131.02,131.0,19.08320748]
[1764682128510,0.67,131.02,131.0,18.58320748]
[1764682130020,0.67,131.02,131.0,26.21679526]
[1764682130212,0.67,131.02,131.0,7.63358778]
[1764682130921,8.30090637,131.05,131.0,28.88651497]
[1764682131124,0.67,131.04,131.0,90.78651497]
[1764682131722,0.67,131.04,131.01,2.16895773]
[1764682131926,0.67,131.04,131.02,7.63242253]
[1764682132128,0.67,131.05,131.02,9.80138026]
[1764682132416,0.67,131.05,131.02,7.63242253]
[1764682132621,2.83895773,131.05,131.01,7.63274606]
[1764682133010,0.67,131.04,131.01,7.63274606]
[1764682133622,2.83895773,131.04,130.99,18.44312827]
[1764682133815,0.67,131.04,130.99,16.27417054]
[1764682134022,0.67,131.03,130.99,35.3595969]
[1764682134328,0.67,131.03,130.99,37.52855463]
[1764682134526,2.16895773,131.02,130.97,7.63487815]
[1764682134727,2.16895773,131.0,130.96,8.80994492]
[1764682135107,0.67,130.99,130.96,8.80994492]
[1764682136035,0.67,130.99,130.97,7.63533633]
[1764682137232,7.63272307,131.02,130.97,7.63533633]
[1764682137530,0.67,131.0,130.97,7.63533633]
[1764682138430,8.30380307,131.0,130.95,19.27542751]
[1764682138636,10.4727608,131.0,130.95,10.00534581]
[1764682138800,0.67,130.99,130.95,10.00534581]
[1764682139304,0.67,130.99,130.96,2.16895773]
[1764682140105,0.67,130.99,130.97,7.63533633]
[1764682140421,0.67,131.01,130.98,2.16895773]
[1764682140724,0.67,131.0,130.97,7.63533633]
[1764682140936,0.67,131.0,130.97,9.80429406]
[1764682141116,0.67,131.0,130.97,7.63533633]
[1764682141507,2.16895773,130.99,130.96,7.63570139]
[1764682141706,2.83895773,130.98,130.95,7.83642958]
[1764682141929,2.83895773,130.98,130.95,0.2]
[1764682142208,2.83895773,130.97,130.95,0.2]
[1764682142724,0.67,130.96,130.95,0.2]
[1764682144430,2.83895773,130.96,130.95,0.2]
[1764682146431,0.67,130.96,130.95,0.2]
[1764682147821,10.47487709,130.96,130.93,0.2]
[1764682148129,2.16895773,130.94,130.93,0.2]
[1764682148516,0.67,130.94,130.93,0.2]
[1764682149026,10.47604341,130.94,130.93,0.2]
[1764682149506,29.56875763,130.94,130.89,0.2]
[1764682149711,2.16895773,130.91,130.89,0.2]
[1764682149911,0.67,130.93,130.89,0.2]
[1764682149912,2.16895773,130.92,130.89,0.2]
[1764682150126,2.16895773,130.91,130.89,0.2]
[1764682150433,0.67,130.91,130.89,0.2]
[1764682150634,0.67,130.9,130.89,0.2]
[1764682151734,8.3094194,130.9,130.89,0.2]
[1764682152419,20.34847309,130.9,130.89,0.2]
[1764682154832,39.4470216,130.9,130.87,0.2]
[1764682155033,3.39905369,130.88,130.87,0.2]
[1764682155342,20.38791769,130.88,130.87,0.2]
[1764682155638,12.71905369,130.88,130.87,0.2]
[1764682156629,20.35964048,130.88,130.87,0.2]
[1764682156828,36.66850448,130.88,130.87,0.2]
[1764682161950,8.32058679,130.88,130.87,0.2]
[1764682162151,20.35964048,130.88,130.87,0.2]
[1764682162641,36.66850448,130.88,130.87,0.2]
[1764682165330,55.76997147,130.88,130.86,0.2]
[1764682165533,4.07905369,130.87,130.86,0.2]
[1764682166234,11.72022431,130.87,130.86,0.2]
[1764682167650,11.72022431,130.87,130.86,1e-08]
[1764682170756,16.308864,130.84,130.79,0.61]
[1764682170939,3.39905369,130.82,130.79,0.61]
[1764682171135,12.03905369,130.82,130.79,7.84571435]
[1764682171335,12.03905369,130.82,130.8,0.41]
[1764682171745,12.03905369,130.82,130.79,8.25571435]
[1764682172351,12.03905369,130.82,130.79,0.61]
[1764682172840,3.39905369,130.81,130.79,0.2]
[1764682174465,3.39905369,130.81,130.79,0.61]
[1764682175040,3.39905369,130.81,130.79,0.2]
[1764682175246,7.64455219,130.82,130.79,0.61]
[1764682175543,19.68360588,130.82,130.79,8.2557693]
[1764682176954,19.81672289,130.85,130.8,0.41]
[1764682177268,19.68228553,130.84,130.8,8.05497553]
[1764682177672,20.39228553,130.84,130.8,8.05497553]
[1764682177969,3.39905369,130.83,130.8,8.05497553]
[1764682178779,11.0427657,130.83,130.8,8.05497553]
[1764682178952,11.7527657,130.83,130.8,7.64497553]
[1764682179149,3.39905369,130.82,130.79,7.84556253]
[1764682179478,3.39905369,130.81,130.79,0.2]
[1764682179652,3.39905369,130.8,130.79,0.2]
[1764682180169,4.10905369,130.8,130.79,0.2]
[1764682180477,11.04431362,130.8,130.79,0.2]
[1764682181066,7.64525993,130.8,130.79,0.2]
[1764682181558,28.06317762,130.8,130.79,0.2]
[1764682181750,11.75431362,130.8,130.79,0.2]
[1764682181956,20.39431362,130.8,130.79,0.2]
[1764682182540,19.11098109,130.82,130.79,0.61]
[1764682182541,7.64427404,130.82,130.79,0.61]
[1764682182945,7.64427404,130.82,130.8,0.41]
[1764682183668,7.64350684,130.83,130.8,0.41]
[1764682184363,12.03905369,130.82,130.79,0.2]
[1764682184568,8.64,130.82,130.79,0.61]
[1764682184765,8.64,130.82,130.79,8.25581347]
[1764682185769,19.68322639,130.82,130.79,0.61]
[1764682187869,3.39905369,130.81,130.79,0.2]
[1764682190080,11.04390993,130.81,130.79,0.2]
[1764682193874,12.68905369,130.8,130.79,0.2]
[1764682194775,20.33431362,130.8,130.79,0.2]
[1764682196472,36.64317762,130.8,130.79,0.2]
[1764682196684,41.66704248,130.8,130.79,0.2]
[1764682197558,41.66704248,130.8,130.79,1e-08]
[1764682197559,28.06686295,130.8,130.79,1e-08]
[1764682197763,17.80205178,130.8,130.77,0.2]
[1764682197961,9.83762105,130.79,130.77,0.2]
[1764682198387,8.64,130.78,130.77,0.2]
[1764682199093,19.6854828,130.78,130.77,0.2]
[1764682199273,38.80155559,130.78,130.76,0.2]
[1764682199593,4.04905369,130.77,130.76,0.2]
[1764682200163,0.65,130.77,130.76,0.2]
[1764682200490,16.08810738,130.77,130.76,0.2]
[1764682200667,9.29,130.77,130.76,0.2]
[1764682200989,16.08810738,130.77,130.76,0.2]
[1764682201172,16.308864,130.75,130.74,0.2]
[1764682201377,28.34791769,130.75,130.74,0.2]
[1764682201690,28.99791769,130.75,130.74,0.2]
[1764682202495,0.65,130.76,130.74,0.2]
[1764682202791,12.68905369,130.75,130.74,0.2]
[1764682203496,20.33723724,130.75,130.74,0.2]
[1764682205268,36.64610124,130.75,130.74,0.2]
[1764682208960,36.64610124,130.75,130.72,0.2]
[1764682208961,16.308864,130.73,130.72,0.2]
[1764682209160,38.18553874,130.73,130.72,0.2]
[1764682209364,26.79648505,130.73,130.72,0.2]
[1764682209569,28.99791769,130.73,130.72,0.2]
[1764682210892,11.04840731,130.73,130.72,0.2]
[1764682211089,19.68840731,130.73,130.72,0.87]
[1764682211777,20.35840731,130.73,130.72,0.2]
[1764682212382,18.89906436,130.73,130.72,0.2]
[1764682212586,18.22906436,130.73,130.72,0.2]
[1764682213300,10.57971074,130.73,130.72,0.2]
[1764682213499,18.22906436,130.73,130.72,0.2]
[1764682214093,9.58906436,130.73,130.72,0.2]
[1764682214292,18.22906436,130.73,130.72,0.2]
[1764682214793,1.93971074,130.75,130.72,0.9]
[1764682214996,1.93971074,130.73,130.72,0.2]
[1764682215498,1.93971074,130.73,130.72,0.9]
[1764682215791,9.31,130.75,130.72,0.9]
[1764682215975,1.93971074,130.74,130.72,0.9]
[1764682216384,10.57971074,130.74,130.73,0.7]
[1764682216586,8.64,130.74,130.73,0.7]
[1764682216789,25.89657884,130.76,130.73,0.7]
[1764682217277,1.93971074,130.76,130.73,8.3492916]
[1764682217485,18.20735666,130.76,130.73,0.7]
[1764682217698,18.20735666,130.76,130.74,0.7]
[1764682218288,9.58735666,130.76,130.74,0.7]
[1764682218488,1.93971074,130.77,130.74,0.7]
[1764682218698,1.93971074,130.75,130.74,0.7]
[1764682219101,9.58789429,130.75,130.72,0.9]
[1764682219311,1.93971074,130.73,130.72,0.9]
[1764682219477,1.93971074,130.73,130.72,0.2]
[1764682219684,26.6774177,130.73,130.68,0.2]
[1764682219880,1.93971074,130.69,130.68,0.2]
[1764682220083,10.55971074,130.69,130.68,0.2]
[1764682220284,11.22971074,130.69,130.68,0.2]
[1764682220898,18.88140559,130.69,130.68,0.2]
[1764682221605,18.88140559,130.69,130.68,0.03]
[1764682221785,16.27169485,130.69,130.68,0.03]
[1764682221980,18.21140559,130.69,130.68,0.03]
[1764682222483,16.27110941,130.7,130.68,0.03]
[1764682222691,1.93971074,130.68,130.66,0.2]
[1764682223314,1.93971074,130.67,130.66,0.2]
[1764682223709,1.93971074,130.67,130.64,7.16817108]
[1764682223892,1.93971074,130.65,130.64,7.16817108]
[1764682224089,1.93971074,130.65,130.6,19.14174724]
[1764682224338,1.93971074,130.64,130.61,8.80994492]
[1764682224622,1.93971074,130.64,130.61,9.29994492]
[1764682224802,1.93971074,130.64,130.62,0.49]
[1764682225620,9.59384311,130.65,130.62,0.49]
[1764682227118,8.32338934,130.67,130.62,8.14540735]
[1764682227307,1.93971074,130.66,130.63,0.49]
[1764682229338,9.59322649,130.66,130.63,0.49]
[1764682230105,16.94298318,130.67,130.63,16.95489466]
[1764682230293,18.21269392,130.67,130.63,16.95489466]
[1764682230495,1.93971074,130.65,130.62,8.80994492]
[1764682230812,1.93971074,130.64,130.61,0.49]
[1764682231593,1.93971074,130.63,130.59,9.59715729]
[1764682231843,1.93971074,130.63,130.6,0.49]
[1764682233495,32.58245603,130.66,130.61,8.80994492]
[1764682233700,1.93971074,130.65,130.61,8.80994492]
[1764682233919,10.29330277,130.66,130.62,0.49]
[1764682235324,10.29330277,130.66,130.62,8.14577743]
[1764682235910,0.7,130.69,130.64,10.74965566]
[1764682236222,2.63971074,130.68,130.64,8.80994492]
[1764682236426,2.63971074,130.68,130.64,9.29994492]
[1764682236598,1.93971074,130.68,130.65,0.49]
[1764682237227,9.59211971,130.68,130.65,0.49]
[1764682237408,1.93971074,130.68,130.65,8.14402933]
[1764682237918,8.35185611,130.69,130.65,8.14402933]
[1764682238128,1.93971074,130.68,130.65,8.14402933]
[1764682238500,0.7,130.68,130.65,7.65402933]
[1764682238693,1.93971074,130.67,130.63,2.42971074]
[1764682238899,1.93971074,130.66,130.62,9.29994492]
[1764682239366,7.65131313,130.7,130.65,1.93971074]
[1764682239532,2.63971074,130.72,130.67,1.93971074]
[1764682240014,11.25971074,130.74,130.69,1.93971074]
[1764682240418,2.63971074,130.74,130.7,0.49]
[1764682240609,11.25971074,130.74,130.7,0.49]
[1764682240801,7.64959979,130.73,130.7,0.49]
[1764682241396,8.34959979,130.73,130.69,10.08136798]
[1764682241716,8.34959979,130.73,130.69,8.14165724]
[1764682242231,10.28931053,130.73,130.69,8.14165724]
[1764682242402,13.39957912,130.73,130.69,8.14165724]
[1764682242599,8.34959979,130.73,130.69,13.19163657]
[1764682242822,0.69,130.73,130.69,13.19163657]
[1764682243426,13.38897848,130.74,130.7,0.49]
[1764682243736,0.69,130.73,130.69,13.19163657]
[1764682244031,5.73997933,130.73,130.69,8.14165724]
[1764682244637,12.69897848,130.74,130.7,0.49]
[1764682245027,13.38897848,130.74,130.7,0.49]
[1764682246633,13.38897848,130.74,130.7,8.14055739]
[1764682248209,5.04997933,130.72,130.69,7.65169485]
[1764682248407,5.04997933,130.72,130.68,8.80994492]
[1764682248633,5.73997933,130.72,130.68,9.29994492]
[1764682249534,5.73997933,130.72,130.68,16.95196104]
[1764682249722,5.73997933,130.72,130.68,16.46196104]
[1764682249929,5.73997933,130.72,130.69,0.49]
[1764682250239,5.04997933,130.72,130.69,0.49]
[1764682250402,7.65013233,130.72,130.69,0.49]
[1764682250607,13.38943587,130.73,130.69,8.14168969]
[1764682250806,7.64945654,130.73,130.69,13.19166902]
[1764682251008,7.64945654,130.73,130.7,0.49]
[1764682251914,5.73997933,130.72,130.68,16.95194813]
[1764682252513,13.39026609,130.72,130.68,16.95194813]
[1764682257028,12.70026609,130.72,130.68,21.51192746]
[1764682257230,0.69,130.73,130.69,8.14167162]
[1764682257435,0.69,130.73,130.69,13.19165095]
[1764682257733,5.04997933,130.72,130.68,16.95193481]
[1764682257905,0.69,130.73,130.68,22.00191414]
[1764682258108,0.69,130.72,130.68,22.00191414]
[1764682258910,7.64926988,130.74,130.68,21.51191414]
[1764682259114,12.69924921,130.74,130.7,7.65110941]
[1764682259340,13.38924921,130.74,130.7,7.65110941]
[1764682259531,0.69,130.74,130.7,8.14110941]
[1764682259837,37.62731503,130.75,130.7,12.70108874]
[1764682260145,0.69,130.74,130.71,0.49]
[1764682260440,0.69,130.74,130.7,13.19108874]
[1764682261130,5.04997933,130.72,130.69,26.77989635]
[1764682261307,12.69948954,130.73,130.69,7.65169485]
[1764682261512,0.69,130.72,130.69,7.65169485]
[1764682261713,5.73997933,130.72,130.68,16.46194404]
[1764682262023,5.73997933,130.72,130.68,16.95194404]
[1764682262531,0.69,130.72,130.68,18.89136416]
[1764682263032,8.34019453,130.72,130.68,18.40136416]
[1764682263232,8.34019453,130.72,130.68,16.95194404]
[1764682263433,8.34019453,130.72,130.68,18.40136416]
[1764682263630,8.34019453,130.72,130.68,18.89136416]
[1764682264133,8.34019453,130.72,130.68,16.95194404]
[1764682264436,0.69,130.71,130.68,78.85194404]
[1764682264627,0.69,130.71,130.68,69.55199912]
[1764682264807,1.93942012,130.69,130.66,2.84]
[1764682265014,1.93942012,130.69,130.66,10.98319266]
[1764682265208,8.34074183,130.71,130.67,2.42942012]
[1764682265432,7.65074183,130.71,130.67,2.42942012]
[1764682265618,16.96000933,130.72,130.68,0.49]
[1764682266235,7.64956685,130.73,130.69,8.80994492]
[1764682266445,16.308864,130.74,130.69,8.80994492]
[1764682266617,0.69,130.73,130.69,9.29994492]
[1764682267148,2.62942012,130.73,130.69,9.29994492]
[1764682267940,0.69,130.72,130.69,9.29994492]
[1764682268237,2.62942012,130.72,130.69,16.46147179]
[1764682268440,10.27970444,130.72,130.66,22.46315028]
[1764682268638,2.62942012,130.71,130.67,8.6]
[1764682268837,2.62942012,130.71,130.67,16.25272815]
[1764682268838,0.69,130.71,130.67,16.25272815]
[1764682269031,0.69,130.7,130.67,16.25272815]
[1764682269543,0.69,130.7,130.67,7.65272815]
[1764682269730,1.93942012,130.69,130.66,19.30327876]
[1764682269940,1.93942012,130.69,130.66,2.84]
[1764682270138,0.69,130.69,130.66,2.84]
[1764682270442,2.62942012,130.71,130.67,0.49]
[1764682270639,0.69,130.71,130.67,0.49]
[1764682271216,2.62942012,130.71,130.67,0.49]
[1764682271924,8.12386825,130.71,130.67,8.14279093]
[1764682272131,7.41386825,130.71,130.67,10.08221105]
[1764682272345,8.12386825,130.71,130.67,8.14279093]
[1764682272520,0.71,130.7,130.67,7.65279093]
[1764682272916,3.030652,130.68,130.66,2.84]
[1764682273133,3.740652,130.67,130.66,2.84]
[1764682273926,11.39351799,130.67,130.66,2.84]
[1764682274929,9.83762105,130.71,130.66,2.84]
[1764682275123,0.71,130.7,130.66,5.870652]
[1764682275535,0.71,130.7,130.66,13.52401386]
[1764682275739,0.71,130.7,130.66,14.01401386]
[1764682275945,8.3611696,130.7,130.66,14.01401386]
[1764682276740,7.6511696,130.7,130.66,10.98336186]
[1764682276940,8.3611696,130.7,130.66,10.98336186]
[1764682278052,11.3918216,130.7,130.66,10.98336186]
[1764682281447,7.6511696,130.7,130.67,0.49]
[1764682281648,0.71,130.7,130.67,7.65239123]
[1764682281949,0.71,130.7,130.67,8.14239123]
[1764682282145,4.740652,130.71,130.67,8.14239123]
[1764682282963,11.68150917,130.71,130.68,0.49]
[1764682283254,8.65085717,130.71,130.68,0.49]
[1764682283843,1.0,130.71,130.68,11.17250766]
[1764682284557,1.0,130.71,130.68,8.14185566]
[1764682284746,0.71,130.7,130.67,16.46251787]
[1764682285253,11.68143651,130.71,130.67,16.95251787]
[1764682285564,3.740652,130.7,130.66,22.12382274]
[1764682285742,0.71,130.7,130.66,22.12382274]
[1764682285949,0.71,130.7,130.67,0.49]
[1764682286149,0.71,130.7,130.66,22.61382274]
[1764682286341,0.71,130.7,130.67,0.49]
[1764682286536,11.39201246,130.7,130.66,19.58317074]
[1764682287762,8.36136046,130.7,130.66,22.61382274]
[1764682288062,11.39201246,130.7,130.66,19.58317074]
[1764682288563,11.39201246,130.7,130.67,0.49]
[1764682290156,11.39201246,130.7,130.66,19.09317074]
[1764682290364,10.68201246,130.7,130.66,19.58317074]
[1764682290563,11.39201246,130.7,130.66,19.58317074]
[1764682290760,1.0,130.71,130.67,9.29994492]
[1764682290957,1.0,130.71,130.67,12.33059692]
[1764682291165,1.0,130.71,130.68,0.49]
[1764682291844,1.71,130.71,130.67,11.84059692]
[1764682292063,1.71,130.71,130.67,12.33059692]
[1764682293267,1.71,130.71,130.68,7.65228037]
[1764682294353,1.0,130.71,130.68,8.14228037]
[1764682294656,1.0,130.71,130.69,9.29994492]
[1764682294854,1.0,130.71,130.69,8.80994492]
[1764682296051,1.0,130.71,130.7,9.29994492]
[1764682296453,1.0,130.71,130.7,8.80994492]
[1764682296646,1.0,130.71,130.7,16.46105433]
[1764682297253,1.0,130.71,130.7,16.95105433]
[1764682297449,1.0,130.71,130.7,19.98170633]
[1764682300374,1.0,130.71,130.7,16.95105433]
[1764682300564,1.0,130.71,130.7,19.98170633]
[1764682301370,1.0,130.71,130.7,16.95105433]
[1764682302955,1.0,130.71,130.7,78.85105433]
[1764682303879,1.0,130.71,130.7,78.36105433]
[1764682305377,1.66,130.71,130.69,7.65139491]
[1764682305566,0.66,130.7,130.69,25.06133983]
[1764682305763,1.66,130.71,130.69,25.06133983]
[1764682305975,1.0,130.71,130.7,8.80994492]
[1764682306561,0.51,130.71,130.7,12.33059692]
[1764682306762,0.51,130.71,130.7,74.23059692]
[1764682307186,0.66,130.79,130.74,8.80994492]
[1764682307359,0.66,130.78,130.75,8.6]
[1764682307681,3.690652,130.78,130.75,8.6]
[1764682307875,3.030652,130.77,130.75,8.6]
[1764682308081,3.690652,130.77,130.74,16.45845519]
[1764682308268,0.66,130.76,130.74,16.45845519]
[1764682309861,0.66,130.76,130.74,25.05845519]
[1764682310486,0.422925,130.76,130.74,25.05845519]
[1764682311175,3.030652,130.78,130.74,47.45102856]
[1764682311373,3.030652,130.79,130.74,47.45102856]
[1764682311562,3.030652,130.79,130.74,25.29845519]
[1764682311764,3.030652,130.79,130.74,28.32910719]
[1764682312099,3.030652,130.79,130.74,47.45102856]
[1764682312269,3.030652,130.78,130.74,44.42037656]
[1764682312670,3.690652,130.8,130.77,8.80994492]
[1764682312877,0.66,130.8,130.77,79.28994492]
[1764682313280,0.66,130.8,130.77,86.93652915]
[1764682313789,3.790652,130.83,130.79,8.80994492]
[1764682313960,3.690652,130.82,130.79,8.58]
[1764682314166,3.030652,130.81,130.79,8.58]
[1764682314466,3.690652,130.81,130.79,8.58]
[1764682315186,3.030652,130.81,130.79,8.58]
[1764682315384,0.66,130.8,130.79,8.58]
[1764682315584,0.66,130.8,130.79,70.48]
[1764682316089,0.66,130.82,130.79,78.12584448]
[1764682316285,0.66,130.82,130.79,16.22584448]
[1764682316489,0.1,130.83,130.8,11.84059692]
[1764682316694,0.76,130.83,130.8,11.84059692]
[1764682317400,0.76,130.83,130.81,7.64467548]
[1764682317893,0.1,130.83,130.81,7.64467548]
[1764682318573,0.76,130.83,130.81,7.64467548]
[1764682319193,0.1,130.83,130.82,11.84059692]
[1764682319371,0.1,130.83,130.82,19.72468803]
[1764682320080,0.1,130.83,130.82,19.48468803]
[1764682320989,0.1,130.83,130.82,16.69403603]
[1764682321170,0.1,130.85,130.82,100.73491582]
[1764682321366,0.1,130.85,130.84,35.79238357]
[1764682321585,0.1,130.85,130.84,41.34173157]
[1764682321971,0.1,130.85,130.84,106.51238357]
[1764682322791,0.1,130.9,130.88,2.64]
[1764682323097,0.76,130.9,130.88,11.22]
[1764682323891,0.76,130.9,130.88,18.86035527]
[1764682324483,0.76,130.9,130.89,8.80994492]
[1764682324682,0.1,130.9,130.89,8.80994492]
[1764682324881,0.1,130.9,130.89,12.08059692]
[1764682325080,0.1,130.9,130.89,11.84059692]
[1764682325676,0.76,130.9,130.88,10.28035527]
[1764682325882,3.790652,130.9,130.88,18.86035527]
[1764682326277,0.66,130.89,130.88,27.67030019]
[1764682328178,0.1,130.9,130.88,27.67030019]
[1764682328381,0.76,130.9,130.88,27.67030019]
[1764682328571,3.030652,130.91,130.9,1.88]
[1764682329183,3.030652,130.92,130.9,1.88]